fUST/lending_fUST_20240505
["ID","MTS","AMOUNT","RATE_DAILY","PERIOD"]
[326443511,1714915843417,-191.562795,0.00021914,2]
[326443513,1714915843426,-191.562795,0.00021914,2]
[326443515,1714915843436,-191.562795,0.00021914,2]
[326443517,1714915843445,-191.562795,0.00021914,2]
[326443519,1714915843454,-191.562795,0.00021914,2]
[326443521,1714915843463,-69837.2996438,0.00021914,5]
[326443523,1714915843473,-10759.07625962,0.00021914,2]
[326443525,1714915843484,-21744.22320734,0.00021914,2]
[326443527,1714915843493,-688637.79898861,0.00021915,2]
[326443868,1714915846666,-70604.82286381,0.00021915,2]
[326443904,1714915847005,-263.379989,0.00021915,2]
[326443909,1714915847044,-150.0,0.00021915,2]
[326443912,1714915847056,-127722.45301075,0.00021915,2]
[326446995,1714916115546,718.46890786,9.999e-05,2]
[326446999,1714916238620,693.808593,0.0001589,2]
[326447000,1714916400781,150.68356451,0.00024251,120]
[326447041,1714916746195,-417.11781021,0.00019814,2]
[326447042,1714916750096,-179.01879855,0.00019814,2]
[326447045,1714916758065,165.239703,0.0001589,2]
[326447049,1714916830256,-514.78616149,0.000189,2]
[326447050,1714916830278,-156.62173039,0.00019715,2]
[326447051,1714916830299,-718.46890786,0.00020825,2]
[326447052,1714916830322,-215.446684,0.00020826,2]
[326447053,1714916830342,-197.43641427,0.00021,2]
[326447054,1714916830362,-153.0,0.00021,2]
[326447055,1714916830383,-153.0,0.00021,2]
[326447056,1714916830405,-153.0,0.00021,2]
[326447057,1714916830429,-153.0,0.00021,2]
[326447058,1714916830452,-370.9806454,0.00021278,2]
[326447059,1714916830472,-642.138,0.00021568,2]
[326447060,1714916830494,-296.202,0.00021568,2]
[326447061,1714916830515,-153.0,0.000216,2]
[326447062,1714916830538,-153.0,0.000216,2]
[326447063,1714916830562,-153.0,0.000216,2]
[326447064,1714916830587,-153.0,0.000216,2]
[326447065,1714916830608,-735.95524713,0.00021898,2]
[326447066,1714916830629,-155.0721743,0.00021898,2]
[326447067,1714916830650,-353.4937776,0.00021899,2]
[326447068,1714916830671,-335.28483481,0.00021899,2]
[326447069,1714916830692,-365.27746751,0.00021899,2]
[326447070,1714916830713,-500.0,0.00021899,2]
[326447071,1714916830735,-500.0,0.00021899,2]
[326447072,1714916830756,-500.0,0.00021899,2]
[326447073,1714916830779,-368.33977597,0.00021899,2]
[326447074,1714916830799,-152.03775288,0.00021899,2]
[326447075,1714916830823,-65816.41748713,0.000219,2]
[326447076,1714916835165,-435.2850595,0.000219,2]
[326447077,1714916849185,-153.0,0.00021041,2]
[326447078,1714916849209,-306.0338147,0.00021178,2]
[326447079,1714916849230,-718.46890786,0.00021899,2]
[326447080,1714916849250,-53748.29745237,0.000219,2]
[326447081,1714916849273,-602.34901,0.000219,2]
[326447082,1714916849295,-602.34902,0.000219,2]
[326447083,1714916849316,-602.34902,0.000219,2]
[326447084,1714916849339,-602.34902,0.000219,2]
[326447085,1714916849358,-602.34901,0.000219,2]
[326447086,1714916849379,-602.34902,0.000219,2]
[326447087,1714916849400,-602.34902,0.000219,2]
[326447088,1714916849422,-602.34902,0.000219,2]
[326447089,1714916849443,-602.34901,0.000219,2]
[326447090,1714916849464,-602.34902,0.000219,2]
[326447091,1714916849489,-602.34902,0.000219,2]
[326447092,1714916849511,-602.34902,0.000219,2]
[326447093,1714916849531,-60395.86138581,0.000219,2]
[326447147,1714917038255,-215.446684,0.00020912,2]
[326447149,1714917038265,-211.454,0.00021568,2]
[326447151,1714917038275,-225.215,0.00021568,2]
[326447153,1714917038284,-10277.52,0.00021899,2]
[326447155,1714917038294,-70.364316,0.00021899,2]
[326447171,1714917038449,-10207.155684,0.00021899,2]
[326447172,1714917038457,-10277.52,0.00021899,2]
[326447173,1714917038466,-602.19882,0.000219,2]
[326447174,1714917038475,-39604.13861419,0.000219,2]
[326447175,1714917038483,-156.54748607,0.00021909,2]
[326447176,1714917038496,-10936.85127979,0.0002191,2]
[326447350,1714917040321,-400.1176732,0.0002191,2]
[326447352,1714917040333,-16415.68954067,0.0002191,2]
[326447385,1714917043480,-238468.12529306,0.0002191,2]
[326447386,1714917043492,-25711.48854422,0.0002191,2]
[326447393,1714917046414,-497738.94640984,0.0002191,2]
[326447394,1714917157182,379.78316757,9.999e-05,2]
[326447396,1714917202514,224.07772232,9.999e-05,2]
[326447397,1714917214529,224.07772232,9.999e-05,2]
[326447398,1714917225415,165.239703,0.0001589,2]
[326447399,1714917234529,224.07772232,9.999e-05,2]
[326447400,1714917254525,224.07772232,0.0001589,2]
[326447401,1714917274522,224.07772232,0.0001589,2]
[326447402,1714917294528,224.07772232,0.0001589,2]
[326447403,1714917314540,224.07772232,0.0001589,2]
[326447407,1714917334532,224.07772232,0.0001589,2]
[326447409,1714917354541,224.4763839,0.0001589,2]
[326447410,1714917530052,154.67518212,9.999e-05,2]
[326447412,1714917836818,154.67518212,9.999e-05,2]
[326447413,1714917849891,165.239703,0.0001589,2]
[326447417,1714917933129,-274.24204897,0.00019637,2]
[326447422,1714918027100,-154.67518212,0.00018899,2]
[326447423,1714918027139,-343.19077433,0.000189,2]
[326447424,1714918027179,-13.85072895,0.00019637,2]
[326447425,1714918049137,-154.67518212,0.00019636,2]
[326447426,1714918049158,-5333.93139038,0.00019637,2]
[326447427,1714918049178,-685.35915968,0.00020812,2]
[326447428,1714918049197,-605.88921,0.00021,2]
[326447429,1714918049217,-605.88921,0.00021,2]
[326447430,1714918049237,-605.88922,0.00021,2]
[326447431,1714918049256,-153.0,0.00021096,2]
[326447432,1714918049276,-150.0,0.00021568,2]
[326447433,1714918049296,-493.0,0.00021568,2]
[326447434,1714918049315,-150.0,0.00021568,2]
[326447435,1714918049335,-153.0,0.000216,2]
[326447436,1714918049356,-153.0,0.000216,2]
[326447437,1714918049376,-153.0,0.000216,2]
[326447438,1714918049398,-153.0,0.000216,2]
[326447439,1714918049419,-3346.452396,0.0002172,3]
[326447440,1714918049439,-622.46547382,0.00021739,2]
[326447441,1714918049459,-153.0,0.000218,2]
[326447442,1714918049482,-269.9342733,0.000218,2]
[326447443,1714918049502,-153.0,0.000218,2]
[326447444,1714918049523,-153.0,0.000218,2]
[326447445,1714918049544,-153.0,0.000218,2]
[326447446,1714918049566,-153.3432324,0.000218,2]
[326447447,1714918049587,-153.0,0.000218,2]
[326447448,1714918049609,-203.9317258,0.000218,2]
[326447449,1714918049628,-153.0,0.000218,2]
[326447450,1714918049648,-153.0,0.000218,2]
[326447451,1714918049670,-153.0,0.000218,2]
[326447452,1714918049690,-153.0,0.000218,2]
[326447453,1714918049713,-153.0,0.000218,2]
[326447454,1714918049732,-153.0,0.000218,2]
[326447455,1714918049753,-153.0,0.000218,2]
[326447456,1714918049773,-295.81669226,0.00021811,2]
[326447457,1714918049793,-2000.0,0.00021811,2]
[326447458,1714918049813,-1000.0,0.00021899,2]
[326447459,1714918049832,-348.94581518,0.00021908,2]
[326447460,1714918049852,-171.38076667,0.00021908,2]
[326447461,1714918049874,-1577.44370859,0.00021908,2]
[326447462,1714918049894,-157.99223186,0.00021908,2]
[326447463,1714918049913,-315.07078977,0.00021908,2]
[326447464,1714918049932,-258.36696438,0.00021908,2]
[326447465,1714918049953,-5000.0,0.00021909,2]
[326447466,1714918049975,-8992.83,0.00021909,2]
[326447467,1714918049994,-8992.83,0.00021909,2]
[326447468,1714918050014,-8992.83,0.00021909,2]
[326447469,1714918050037,-8992.83,0.00021909,2]
[326447470,1714918050057,-174802.12150543,0.00021909,2]
[326447474,1714918223244,-154.67518212,0.00020913,2]
[326447475,1714918223265,-108.70481788,0.00021,2]
[326447521,1714918232372,-5808.33382876,0.00021,2]
[326447523,1714918232381,-34918.6498219,0.00021909,5]
[326447524,1714918232390,-796.32851819,0.00021909,2]
[326447578,1714918238323,-217.53287206,0.00021908,2]
[326447580,1714918238333,-6806.39784289,0.00021909,2]
[326447592,1714918238781,-15220.74246625,0.00021909,2]
[326447656,1714918243489,-8405.27122663,0.00021909,2]
[326447721,1714918246678,-0.00544601,0.00021909,2]
[326447722,1714918246690,-174293.59550967,0.00021909,2]
[326447723,1714918246701,-2091.10341293,0.00021909,2]
[326447724,1714918246713,-6152.0,0.00021909,2]
[326447725,1714918249065,151.80951728,0.00019178,2]
[326447726,1714918249088,163.81930094,0.00019178,2]
[326447727,1714918249108,90.17369114,0.00019178,2]
[326447728,1714918393018,165.239703,0.0001589,2]
[326447732,1714918846846,165.239703,0.0001589,2]
[326447733,1714919106364,1334.760297,9.999e-05,2]
[326447734,1714919106384,44.75340847,9.999e-05,2]
[326447735,1714919138131,-159.46398442,0.00019809,2]
[326447736,1714919147127,-115.80303785,0.00019809,2]
[326447737,1714919147146,-154.67518212,0.00019834,2]
[326447738,1714919147166,-500.0,0.00020547,2]
[326447739,1714919147188,-71.3671979,0.00020821,2]
[326447740,1714919185645,154.67518212,9.999e-05,2]
[326447742,1714919239205,-183.51134818,0.000189,2]
[326447743,1714919239226,-206.79315446,0.00019833,2]
[326447744,1714919239245,-428.6328021,0.00020821,2]
[326447745,1714919239264,-1405.57885414,0.00020877,2]
[326447746,1714919239286,-1378.53720371,0.00020877,2]
[326447747,1714919239305,-154.91520538,0.00020877,2]
[326447748,1714919239324,-156.60044546,0.00020877,2]
[326447749,1714919239346,-356.59227792,0.00020878,2]
[326447750,1714919239369,-891.27337061,0.00020878,2]
[326447751,1714919239389,-154.90767069,0.00020878,2]
[326447752,1714919239409,-155.20842836,0.00020878,2]
[326447753,1714919239428,-500.0,0.00020878,2]
[326447754,1714919239448,-378.29421461,0.00020878,2]
[326447755,1714919239469,-8934.38841623,0.00020879,5]
[326447756,1714919252114,-154.67518212,0.00020877,2]
[326447757,1714919252134,-1045.3121549,0.00020879,2]
[326447758,1714919317968,0.57140941,0.0001589,2]
[326447759,1714919317988,200.0,0.0001589,2]
[326447760,1714919318009,200.0,0.0001589,2]
[326447761,1714919318029,200.0,0.0001589,2]
[326447762,1714919318054,66.80873859,0.0001589,2]
[326447763,1714919338952,133.19126141,0.0001589,2]
[326447764,1714919338973,500.0,0.0001589,2]
[326447765,1714919338995,116.80873859,0.0001589,2]
[326447766,1714919360872,155.09035421,0.0001589,2]
[326447767,1714919360895,150.0,0.0001589,2]
[326447768,1714919360916,383.19126141,0.0001589,2]
[326447769,1714919360936,200.0,0.0001589,2]
[326447770,1714919360956,163.385,0.0001589,2]
[326447771,1714919360989,298.33338438,0.0001589,2]
[326447772,1714919378890,179.6402562,0.0001589,2]
[326447773,1714919378920,268.92910488,0.0001589,2]
[326447774,1714919379165,81.47164694,0.0001589,2]
[326447775,1714919396992,600.0,0.0001589,2]
[326447781,1714919432539,-157.2912273,0.00019878,2]
[326447782,1714919432549,-24762.9,0.0002,2]
[326447783,1714919432557,-155.17244872,0.00020877,2]
[326447784,1714919432566,-154.70605849,0.00020877,2]
[326447785,1714919432575,-154.70605849,0.00020877,2]
[326447786,1714919432584,-193.79854676,0.00020878,2]
[326447790,1714919432661,-12992.13070284,0.00020879,5]
[326447791,1714919432687,-4856.88205236,0.00020879,2]
[326447792,1714919432696,-1577.44370859,0.00020879,2]
[326447793,1714919432705,-107846.69973145,0.00020879,2]
[326447972,1714919446924,-100.57187014,0.00020879,2]
[326447973,1714919446948,-17938.36929547,0.00020879,2]
[326447974,1714919446968,-616.23,0.00020879,2]
[326447979,1714919671835,521.62280651,9.999e-05,2]
[326447980,1714919676350,521.62280651,9.999e-05,2]
[326447981,1714919745689,206.55715969,9.999e-05,2]
[326447983,1714919761893,150.0,9.999e-05,2]
[326447984,1714919762016,4.67518212,9.999e-05,2]
[326447988,1714919898336,154.67518212,9.999e-05,2]
[326447989,1714920029381,165.69837,0.0001589,2]
[326447990,1714920230887,718.46890786,9.999e-05,2]
[326447995,1714920352151,-174.03768353,0.000189,2]
[326447996,1714920352172,-288.85240236,0.00020547,2]
[326447997,1714920353101,-177.06331714,0.00020547,2]
[326447998,1714920434109,-150.0,0.000189,2]
[326447999,1714920434129,-57.70489682,0.00020547,2]
[326448000,1714920434151,-227.58016268,0.00020877,2]
[326448001,1714920450172,-41.3489422,0.00020877,2]
[326448002,1714920450193,-236.80379669,0.00020877,2]
[326448003,1714920450219,-187.03963949,0.00020877,2]
[326448004,1714920450239,-716.54710117,0.00020877,2]
[326448005,1714920450259,-166.87590922,0.00020877,2]
[326448006,1714920450281,-3000.0,0.00020878,2]
[326448007,1714920450308,-3000.0,0.00020878,2]
[326448008,1714920450329,-3000.0,0.00020878,2]
[326448009,1714920450349,-3000.0,0.00020878,2]
[326448010,1714920450368,-3000.0,0.00020878,2]
[326448011,1714920450390,-3000.0,0.00020878,2]
[326448012,1714920450410,-3000.0,0.00020878,2]
[326448013,1714920450428,-1018.34686474,0.00020878,2]
[326448014,1714920450451,-500.0,0.00020878,2]
[326448015,1714920450469,-500.0,0.00020878,2]
[326448016,1714920450488,-2428.44102618,0.00020879,2]
[326448017,1714920450509,-6496.06535142,0.00020879,5]
[326448018,1714920450529,-19645.54798859,0.00020879,2]
[326448024,1714920612217,165.698378,0.0001589,2]
[326448045,1714920631760,-236.42,0.00020878,2]
[326448046,1714920631770,-3248.03267571,0.00020879,5]
[326448047,1714920631779,-20299.44265156,0.00020879,2]
[326448130,1714920638080,-1214.22051309,0.00020879,2]
[326448131,1714920638092,-8754.91248179,0.00020879,2]
[326448132,1714920638105,-18078.97369907,0.00020879,2]
[326448133,1714920638118,-10434.67529607,0.00020879,2]
[326448134,1714920638130,-54446.57540664,0.00020879,2]
[326448135,1714920638143,-49764.77009333,0.00020879,2]
[326448141,1714920640750,-6171.28652309,0.00020879,2]
[326448194,1714920681530,88.1778266,0.000189,2]
[326448195,1714920681551,61.8221734,0.000189,2]
[326448196,1714921125202,165.698378,0.0001589,2]
[326448197,1714921152643,154.67518212,9.999e-05,2]
[326448198,1714921282718,10210.11660835,0.00025192,60]
[326448199,1714921302848,4396.28743456,0.00025,60]
[326448200,1714921473564,286.16,0.00025,60]
[326448203,1714921548224,-154.67518212,0.00020615,2]
[326448204,1714921548244,-150.0,0.00020616,3]
[326448205,1714921548264,-150.64083054,0.00020869,3]
[326448207,1714921606932,165.698378,0.0001589,2]
[326448208,1714921631119,-154.67518212,0.00020868,2]
[326448209,1714921631139,-202.5,0.00020869,3]
[326448210,1714921631163,-306.41988013,0.00020877,2]
[326448211,1714921631287,-266.32276827,0.00020877,2]
[326448212,1714921640160,-1895.78651822,0.00020877,2]
[326448213,1714921640181,-206.41879743,0.00020877,2]
[326448214,1714921640201,-266.32276827,0.00020878,2]
[326448215,1714921640222,-1503.38372329,0.00020878,2]
[326448216,1714921640246,-1624.01633785,0.00020879,5]
[326448217,1714921640265,-607.11025655,0.00020879,2]
[326448218,1714921640286,-11258.44405484,0.00020879,2]
[326448241,1714921831919,-288.0927779,0.00019879,2]
[326448242,1714921831928,-340.56,0.00020869,3]
[326448243,1714921831937,-183.9475463,0.00020877,2]
[326448245,1714921831946,-154.69061876,0.00020877,2]
[326448247,1714921831955,-3000.0,0.00020878,2]
[326448248,1714921831963,-675.5105,0.00020878,2]
[326448249,1714921831972,-500.0,0.00020878,2]
[326448250,1714921831981,-255.82996394,0.00020878,2]
[326448251,1714921831990,-500.0,0.00020878,2]
[326448252,1714921831998,-195.4085931,0.00020878,2]
[326448253,1714921832010,-304.5914069,0.00020878,2]
[326448254,1714921832020,-500.0,0.00020878,2]
[326448255,1714921832028,-500.0,0.00020878,2]
[326448256,1714921832037,-500.0,0.00020878,2]
[326448257,1714921832047,-500.0,0.00020878,2]
[326448258,1714921832056,-500.0,0.00020878,2]
[326448259,1714921832065,-500.0,0.00020878,2]
[326448260,1714921832074,-500.0,0.00020878,2]
[326448261,1714921832082,-132.77674993,0.00020878,2]
[326448262,1714921832095,-367.22325007,0.00020878,2]
[326448263,1714921832105,-500.0,0.00020878,2]
[326448264,1714921832114,-500.0,0.00020878,2]
[326448265,1714921832123,-500.0,0.00020878,2]
[326448266,1714921832132,-187.88880273,0.00020878,2]
[326448350,1714921838015,-1065.75140357,0.00020877,2]
[326448368,1714921840639,-313.27405102,0.00020877,2]
[326448369,1714921840649,-312.11119727,0.00020878,2]
[326448370,1714921840659,-276.92941948,0.00020878,2]
[326448428,1714921905170,154.67518212,9.999e-05,2]
[326448429,1714921935537,234.62235358,9.999e-05,2]
[326448430,1714921935558,156.54748607,9.999e-05,2]
[326448431,1714921935578,40.56518341,9.999e-05,2]
[326448432,1714921955422,431.73502306,9.999e-05,2]
[326448436,1714921978162,431.73502306,9.999e-05,2]
[326448437,1714921995441,280.50827993,9.999e-05,2]
[326448442,1714922159900,642.296059,0.0001589,2]
[326448447,1714922332335,19193.57611322,0.0001589,2]
[326448463,1714922528294,154.67518212,9.999e-05,2]
[326448465,1714922570501,2000.0,0.00026662,120]
[326448466,1714922581821,2000.0,0.00026662,120]
[326448467,1714922592180,1805.18554135,0.00026662,120]
[326448468,1714922624947,160.574017,0.0001589,2]
[326448469,1714922743148,-288.79340868,0.000189,2]
[326448470,1714922743168,-405.80250936,0.00019178,2]
[326448471,1714922743186,-167.2231327,0.00019178,2]
[326448472,1714922743207,-214.12621855,0.00019392,2]
[326448473,1714922746110,-34.81376155,0.00019392,2]
[326448474,1714922746131,-126.41015614,0.00019416,2]
[326448475,1714922788408,3893.8088336,0.0001589,2]
[326448476,1714922788986,150.0,0.00026662,120]
[326448477,1714922836110,-123.58984386,0.00019416,2]
[326448478,1714922836130,-1194.91720238,0.00019437,2]
[326448479,1714922836383,179.6402562,0.0001589,2]
[326448480,1714922837114,-327.63860188,0.00019437,2]
[326448481,1714922844299,-23377.44419574,0.00019437,2]
[326448482,1714922844319,-154.67518212,0.00019832,2]
[326448483,1714922844339,-7945.14962897,0.0002,2]
[326448484,1714922844359,-200.0,0.0002,2]
[326448485,1714922844379,-153.0,0.00020078,2]
[326448486,1714922844399,-153.0,0.00020178,2]
[326448487,1714922844522,-153.0,0.00020178,2]
[326448488,1714922844548,-306.0,0.00020178,2]
[326448489,1714922844572,-620.12327369,0.00020601,2]
[326448490,1714922844594,-150.0,0.00020616,3]
[326448491,1714922844614,-412.39463435,0.00020876,2]
[326448492,1714922844635,-154.67518212,0.00020876,2]
[326448493,1714922844655,-161.49540443,0.00020876,2]
[326448494,1714922947120,-574.01945909,0.00019437,2]
[326448511,1714923032374,-150.0,0.00020616,3]
[326448513,1714923032384,-150.0,0.00020734,3]
[326448515,1714923032393,-150.0,0.00020853,3]
[326448517,1714923032402,-7945.14962897,0.00020855,2]
[326448519,1714923032412,-134.00962289,0.00020876,2]
[326448521,1714923032421,-4272.43697957,0.00020876,10]
[326448523,1714923032431,-284.07927972,0.00020877,2]
[326448524,1714923032440,-234.62235358,0.00020877,2]
[326448526,1714923032449,-500.0,0.00020877,2]
[326448529,1714923032458,-152.03775288,0.00020877,2]
[326448530,1714923032467,-500.0,0.00020877,2]
[326448533,1714923032476,-500.0,0.00020877,2]
[326448535,1714923032486,-500.0,0.00020877,2]
[326448537,1714923032496,-500.0,0.00020877,2]
[326448539,1714923032504,-500.0,0.00020877,2]
[326448540,1714923032513,-500.0,0.00020877,2]
[326448542,1714923032524,-500.0,0.00020877,2]
[326448544,1714923032535,-500.0,0.00020877,2]
[326448546,1714923032544,-500.0,0.00020877,2]
[326448549,1714923032554,-500.0,0.00020877,2]
[326448550,1714923032567,-500.0,0.00020877,2]
[326448553,1714923032577,-500.0,0.00020877,2]
[326448554,1714923032586,-500.0,0.00020877,2]
[326448556,1714923032595,-500.0,0.00020877,2]
[326448558,1714923032605,-500.0,0.00020877,2]
[326448560,1714923032618,-295.24175517,0.00020877,2]
[326448562,1714923032627,-500.0,0.00020877,2]
[326448564,1714923032638,-500.0,0.00020877,2]
[326448566,1714923032648,-500.0,0.00020877,2]
[326448569,1714923032658,-7494.03,0.00020877,2]
[326448570,1714923032667,-7494.03,0.00020877,2]
[326448573,1714923032677,-826.21120572,0.00020878,2]
[326448575,1714923032688,-244.270359,0.00020878,2]
[326448576,1714923032696,-151.0,0.00020878,2]
[326448579,1714923032706,-244.270359,0.00020878,2]
[326448581,1714923032716,-365.200136,0.00020878,2]
[326448582,1714923032724,-365.200136,0.00020878,2]
[326448585,1714923032734,-151.0,0.00020878,2]
[326448587,1714923032743,-160.891891,0.00020878,2]
[326448589,1714923032752,-151.0,0.00020878,2]
[326448591,1714923032761,-151.0,0.00020878,2]
[326448593,1714923032770,-694.645422,0.00020878,2]
[326448595,1714923032780,-547.299188,0.00020878,2]
[326448596,1714923032789,-444.683555,0.00020878,2]
[326448598,1714923032798,-547.299188,0.00020878,2]
[326448601,1714923032808,-444.683555,0.00020878,2]
[326448602,1714923032818,-171.86052,0.00020878,2]
[326448605,1714923032827,-171.86052,0.00020878,2]
[326448607,1714923032837,-7494.03,0.00020878,2]
[326448608,1714923032846,-2232.2441285,0.00020878,2]
[326448675,1714923038349,-324.24202329,0.00020877,2]
[326448676,1714923038358,-5261.7858715,0.00020878,2]
[326448677,1714923038367,-1230.36076571,0.00020878,2]
[326448840,1714923043384,-6263.66923429,0.00020878,2]
[326448842,1714923043393,-7494.03,0.00020878,2]
[326448844,1714923043404,-7494.03,0.00020878,2]
[326448846,1714923043413,-272.17630781,0.00020878,2]
[326449028,1714923046435,-261.81,0.00020878,2]
[326449048,1714923046556,-150.0,0.00020878,2]
[326449051,1714923046567,-282.5,0.00020878,2]
[326449069,1714923093090,186.77318652,0.000189,2]
[326449070,1714923093109,150.0,0.000189,2]
[326449071,1714923093129,138.94054055,0.000189,2]
[326449072,1714923120028,15.76551794,0.0001589,2]
[326449073,1714923120050,149.56682606,0.0001589,2]
[326449076,1714923199347,154.67518212,0.0001589,2]
[326449077,1714923206816,1312.43464904,0.0001589,2]
[326449078,1714923213317,196.67667125,0.0001589,2]
[326449079,1714923219163,1464.59454276,0.0001,2]
[326449080,1714923220803,729.13036058,0.0001589,2]
[326449082,1714923238625,150.66852924,0.00023907,120]
[326449083,1714923238802,729.13036058,0.0001589,2]
[326449084,1714923256808,379.87691786,0.0001589,2]
[326449085,1714923272841,379.87691786,0.0001589,2]
[326449086,1714923288809,379.87691786,0.0001589,2]
[326449087,1714923312853,379.87691786,0.0001589,2]
[326449088,1714923317668,527.33215381,9.999e-05,2]
[326449089,1714923336839,379.87691786,0.0001589,2]
[326449090,1714923373453,19202.35106111,0.0001589,2]
[326449094,1714923409589,9497.48329581,0.0001589,2]
[326449096,1714923460576,469.92999107,0.0001589,2]
[326449097,1714923480458,263.17879993,0.0001589,2]
[326449098,1714923645780,165.332356,0.0001589,2]
[326449099,1714923761886,150.66852924,0.00023697,120]
[326449100,1714923885471,1335.86013751,9.999e-05,2]
[326449101,1714923907004,2706.86486724,9.999e-05,2]
[326449102,1714923935094,-175.47937719,0.000189,2]
[326449103,1714923939204,2706.86486724,9.999e-05,2]
[326449104,1714923958113,2706.86486724,9.999e-05,2]
[326449105,1714923959114,-141.66310752,0.000189,2]
[326449106,1714923959136,-558.18246975,0.00019574,2]
[326449107,1714923973205,2706.86486724,9.999e-05,2]
[326449108,1714923974028,1079.71229426,9.999e-05,2]
[326449109,1714923997650,2706.86486724,9.999e-05,2]
[326449110,1714924015633,2706.86486724,9.999e-05,2]
[326449111,1714924025099,-316.90927715,0.000189,2]
[326449112,1714924034097,-2.53160717,0.000189,2]
[326449113,1714924034118,-160.871423,0.00019384,2]
[326449114,1714924034138,-426.97238354,0.00019574,2]
[326449115,1714924037107,2706.86486724,9.999e-05,2]
[326449116,1714924045083,-266.54474377,0.00019574,2]
[326449117,1714924053117,-15612.81595174,0.00019574,2]
[326449118,1714924053136,-4234.5361434,0.0002,10]
[326449119,1714924053156,-7945.14962897,0.0002,2]
[326449120,1714924053175,-893.87701251,0.0002,2]
[326449121,1714924053195,-991.15199934,0.000205,2]
[326449122,1714924053214,-150.0,0.00020616,3]
[326449123,1714924053234,-8865.69340956,0.00020777,3]
[326449124,1714924053254,-603.30593,0.000208,2]
[326449125,1714924053273,-172.88376168,0.00020811,2]
[326449126,1714924057109,2706.86486724,9.999e-05,2]
[326449127,1714924074283,816.36499796,9.999e-05,2]
[326449132,1714924199708,150.68356451,0.00024397,120]
[326449148,1714924232367,-316.23475701,0.00020777,3]
[326449155,1714924232423,-55238.76524299,0.00020777,3]
[326449157,1714924232432,-816.36499796,0.00020807,2]
[326449159,1714924232441,-991.15199934,0.00020808,2]
[326449161,1714924232450,-893.87701251,0.00020808,2]
[326449163,1714924232459,-379.87691786,0.00020811,2]
[326449165,1714924232468,-2651.08145976,0.00020811,2]
[326449167,1714924232477,-500.0,0.00020853,2]
[326449169,1714924232486,-500.0,0.00020853,2]
[326449171,1714924232495,-500.0,0.00020853,2]
[326449173,1714924232503,-646.76910687,0.00020853,2]
[326449174,1714924232513,-500.0,0.00020853,2]
[326449176,1714924232522,-500.0,0.00020853,2]
[326449178,1714924232531,-500.0,0.00020853,2]
[326449180,1714924232539,-500.0,0.00020853,2]
[326449182,1714924232549,-500.0,0.00020853,2]
[326449184,1714924232558,-500.0,0.00020853,2]
[326449186,1714924232567,-7998.14711043,0.00020854,2]
[326449188,1714924232576,-160.29142136,0.00020875,2]
[326449190,1714924232585,-412.39463435,0.00020875,2]
[326449192,1714924232594,-1347.03974677,0.00020875,2]
[326449194,1714924232604,-158.04036321,0.00020875,2]
[326449196,1714924232613,-198.69975564,0.00020875,2]
[326449198,1714924232622,-300.21996953,0.00020875,2]
[326449200,1714924232631,-180.2324,0.00020875,2]
[326449202,1714924232640,-155.17398786,0.00020875,2]
[326449204,1714924232650,-206.29372576,0.00020875,2]
[326449206,1714924232659,-227.58016268,0.00020875,2]
[326449208,1714924232668,-1077.7336014,0.00020875,2]
[326449210,1714924232677,-526.79855353,0.00020876,2]
[326449212,1714924232687,-500.0,0.00020876,2]
[326449224,1714924232783,-276.31902613,0.00020876,2]
[326449226,1714924232796,-451.15838245,0.00020876,2]
[326449228,1714924232805,-421.73368282,0.00020876,2]
[326449230,1714924232815,-500.0,0.00020876,2]
[326449232,1714924232824,-500.0,0.00020876,2]
[326449234,1714924232834,-500.0,0.00020876,2]